[Event "36th Balaton IM 2018"]
[Site "Balatonlelle"]
[Date "2018.06.20"]
[Round "9"]
[White "Vegh, Endre"]
[Black "McPhillips, Joseph"]
[Result "1-0"]
[ECO "E32"]
[WhiteElo "2260"]
[BlackElo "2399"]
[Annotator "NA"]
[PlyCount "229"]
[EventDate "2018.06.12"]
[EventType "swiss"]
[EventCountry "HUN"]
[SourceTitle "playchess.com"]
[Source "ChessBase"]
[SourceQuality "1"]
[TimeControl "40/5400+30:1800+30"]

{[%evp 8,215,-5,0,32767,32767,32767,7,18,32767,32767,32767,32767,32767,32767,32767,32767,32767,32767,32767,32767,14,20,2,23,1,23,5,32,0,12,0,0,-46,-33,-38,-33,-31,-29,32767,32767,-77,-77,-95,-83,-76,-47,-41,-17,-35,-47,-53,-14,-77,-45,-54,32767,-103,-93,32767,-18,-99,32767,32767,32767,32767,32767,32767,32767,32767,32767,-15,-14,32767,32767,32767,32767,0,32767,-10,0,32767,32767,32767,0,0,0,32767,32767,32767,32767,0,0,0,0,0,0,0,0,0,0,32767,0,0,0,0,0,0,32767,0,8,0,0,0,0,0,32767,32767,32767,32767,32767,0,17,0,32767,32767,43,32767,49,48,118,43,48,41,81,0,27,23,30,0,68,64,122,129,144,32767,32767,131,32767,32767,32767,32767,32767,32767,32767,32767,32767,32767,32767,32767,32767,32767,32767,237,234,273,268,281,258,247,735,1064,32767,671,32767,32767,32767,32767,32767,32767,32767,32767,32767,32767,32767,32767,32767,32767,32767,32767,32767,830,670,921,1069,4759,849,5583,32767,32767,32767,32767,32767,29970,29956,29974,29966,12846,29976,29978]} 1. d4 {[%emt 0:00:02]} Nf6 {[%emt 0:02:52]} 2. c4 {[%emt 0:00:21]} e6 {[%emt 0:00:15]} 3. Nc3 {[%emt 0:00:25]} Bb4 {[%emt 0:00:12]} 4. Qc2 {[%emt 0:00:23]} O-O {[%emt 0:00:32]} 5. Nf3 {[%emt 0:00:56]} c5 {[%emt 0:00:27]} 6. dxc5 {[%emt 0:00:20]} Na6 {[%emt 0:00:08]} 7. g3 {[%emt 0:00:22]} Nxc5 {[%emt 0:00:08]} 8. Bg2 {[%emt 0:00:06]} Nce4 {[%emt 0:00:40]} 9. O-O {[%emt 0:00:07]} Nxc3 {[%emt 0:01:01]} 10. bxc3 {[%emt 0:00:04]} Be7 {[%emt 0:00:08]} 11. e4 {[%emt 0:00:54]} d6 {[%emt 0:00:53]} 12. e5 {[%emt 0:01:02] E39: Nimzo-Indian: Classical: 4...c5 5 dxc5 0-0} dxe5 {[%emt 0:00:31]} 13. Nxe5 {[%emt 0:00:01]} Ne8 {[%emt 0:04:05]} (13... Qc7 14. Qe2 Nd7 15. Bf4 Nxe5 16. Bxe5 Bd6 17. Rfe1 Rb8 18. Rad1 Bxe5 19. Qxe5 Qxe5 20. Rxe5 b6 21. c5 Ba6 22. c6 {½-½ (43) Nakamura,H (2781)-Caruana,F (2799) London 2017}) 14. Qe2 {[%emt 0:13:54]} Qc7 {[%emt 0:03:24]} 15. a4 {[%emt 0:02:56] LiveBook: 3 Games [#]} Rb8 $146 {[%emt 0:12:08]} ({Predecessor:} 15... Nd6 16. Ba3 f6 17. c5 Nf5 18. Nd3 Rb8 19. Nf4 e5 20. Nd5 Qd8 21. g4 Nh4 22. c6 {0-1 (43) Holm,K (2436)-Tran,T (2548) chess.com INT 2018}) 16. a5 {[%emt 0:05:43]} Bd6 {[%emt 0:10:03]} 17. Re1 {[%emt 0:01:19]} f6 {[%emt 0:02:38]} 18. Ng4 {[%emt 0:10:10]} Bd7 {[%emt 0:01:43]} 19. Rd1 {[%emt 0:04:44]} Rc8 {[%emt 0:09:10]} 20. Ba3 {[%emt 0:08:43]} Bxa3 {[%emt 0:07:02]} 21. Rxa3 {[%emt 0:00:10]} Rf7 {[%emt 0:00:10]} 22. Ne3 {[%emt 0:02:48]} Bc6 {[%emt 0:03:37]} 23. Bxc6 {[%emt 0:03:24]} Qxc6 {[%emt 0:00:02]} 24. Qg4 {[%emt 0:09:31] [#]} f5 $1 {[%emt 0:05:46]} 25. Qf4 {[%emt 0:02:06]} Qc5 {[%emt 0:01:50]} 26. Ra2 {[%emt 0:03:22]} h6 {[%emt 0:06:21]} 27. Qd4 {[%emt 0:03:52]} Nf6 {[%emt 0:07:28]} 28. Qxc5 {[%emt 0:05:56]} Rxc5 {[%emt 0:00:03]} 29. Rd8+ {[%emt 0:01:03]} Rf8 {[%emt 0:04:17]} 30. Rd6 {[%emt 0:03:18]} (30. Rxf8+ $11 {keeps the balance.} Kxf8 31. Rb2) 30... Re8 {[%emt 0:00:18]} 31. a6 {[%emt 0:02:32]} b6 {[%emt 0:00:37]} 32. f3 {[%emt 0:03:47]} Kf7 {[%emt 0:00:50]} 33. Re2 {[%emt 0:06:13]} g6 {[%emt 0:04:52]} (33... Re7 $17) 34. Rdd2 {[%emt 0:00:48]} (34. Nc2 $11) 34... Ra5 {[%emt 0:02:52]} 35. Ra2 {[%emt 0:00:14]} Rxa2 {[%emt 0:00:45]} 36. Rxa2 {[%emt 0:00:03]} Nd7 {[%emt 0:00:54]} 37. Nc2 {[%emt 0:01:36]} e5 {[%emt 0:07:46]} 38. Na3 {[%emt 0:00:12]} Nc5 {[%emt 0:00:15]} 39. Nb5 {[%emt 0:00:25]} Re7 {[%emt 0:00:03]} 40. Nd6+ {[%emt 0:00:00]} Kf6 {[%emt 0:02:05]} 41. Nc8 {[%emt 0:01:53]} Re8 {[%emt 0:00:14]} 42. Nxa7 {[%emt 0:01:38]} Ra8 {[%emt 0:00:17]} 43. Nb5 {[%emt 0:02:16]} Nxa6 {[%emt 0:01:08]} 44. Rd2 {[%emt 0:03:28]} Re8 {[%emt 0:00:18]} 45. Ra2 {[%emt 0:00:55]} Ra8 {[%emt 0:00:27]} 46. Rd2 {[%emt 0:00:10]} Re8 {[%emt 0:00:02]} 47. Ra2 {[%emt 0:00:07]} Nc5 {[%emt 0:00:12]} 48. Nc7 {[%emt 0:00:30]} Rb8 {[%emt 0:00:39]} 49. Nd5+ {[%emt 0:04:12]} Ke6 {[%emt 0:00:09]} 50. Rb2 {[%emt 0:00:42]} Nd7 {[%emt 0:00:54]} 51. Rb5 {[%emt 0:01:04]} Kd6 {[%emt 0:00:53]} 52. Kf2 {[%emt 0:00:58]} Ke6 {[%emt 0:04:17]} 53. Ke3 {[%emt 0:00:54]} g5 {[%emt 0:00:42]} 54. Nc7+ {[%emt 0:01:42]} Kf7 {[%emt 0:00:22]} 55. Nd5 {[%emt 0:00:51]} h5 {[%emt 0:00:35]} 56. Rb2 {[%emt 0:01:52]} Ke6 {[%emt 0:00:15]} 57. Rb5 {[%emt 0:03:29]} Kf7 {[%emt 0:01:32]} 58. Rb2 {[%emt 0:00:46]} Ke8 {[%emt 0:00:28]} 59. Nc7+ {[%emt 0:00:36]} Ke7 {[%emt 0:00:48]} 60. Nd5+ {[%emt 0:00:13]} Kd6 {[%emt 0:00:41]} 61. Rb5 {[%emt 0:00:42]} Ke6 {[%emt 0:02:10]} 62. Nc7+ {[%emt 0:00:31]} Kf6 {[%emt 0:00:29]} 63. Nd5+ {[%emt 0:00:16]} Kg7 {[%emt 0:00:34]} 64. Rb2 {[%emt 0:00:51]} g4 {[%emt 0:01:29]} 65. fxg4 {[%emt 0:01:16]} hxg4 {[%emt 0:00:14]} 66. Rf2 {[%emt 0:00:40]} Rf8 {[%emt 0:00:20]} 67. Ne7 {[%emt 0:00:43]} Kf6 {[%emt 0:17:01]} 68. Nxf5 {[%emt 0:00:41]} Ra8 {[%emt 0:00:01]} (68... Kg5 $14 69. Ne7 Rxf2 70. Kxf2 Kf6 71. Nd5+ Ke6) 69. Nd6+ {[%emt 0:00:55]} (69. Nh6+ $16 Ke6 70. Nxg4) 69... Ke6 {[%emt 0:00:08]} 70. Ne4 {[%emt 0:01:00]} Ra1 {[%emt 0:00:05]} 71. Kd3 {[%emt 0:05:16]} (71. Ng5+ $16 Kd6 72. Ke4) 71... Re1 $11 {[%emt 0:00:17]} 72. Ng5+ {[%emt 0:01:50]} Kd6 {[%emt 0:00:02]} 73. Ne4+ {[%emt 0:00:23]} Kc6 {[%emt 0:00:01]} 74. Rf7 {[%emt 0:00:42]} Rd1+ {[%emt 0:00:41]} (74... Nc5+ $14 75. Nxc5 Kxc5) 75. Ke2 {[%emt 0:00:31]} Ra1 {[%emt 0:01:42]} 76. Rh7 {[%emt 0:00:21]} Ra4 {[%emt 0:00:52]} 77. Rh6+ {[%emt 0:00:23]} Kc7 {[%emt 0:00:32]} 78. Kd3 {[%emt 0:00:25]} Ra2 {[%emt 0:00:50]} 79. Rg6 {[%emt 0:01:13]} Rxh2 {[%emt 0:01:33]} 80. Rxg4 {[%emt 0:00:04]} Rh1 {[%emt 0:00:10]} 81. Rg7 {[%emt 0:01:00]} Kc6 {[%emt 0:00:12]} 82. g4 {[%emt 0:00:47]} Rh3+ {[%emt 0:00:10]} 83. Ke2 {[%emt 0:01:04]} Nf8 {[%emt 0:00:27]} 84. Re7 {[%emt 0:00:55]} Nd7 {[%emt 0:00:46]} 85. Re6+ {[%emt 0:00:39]} Kc7 {[%emt 0:00:07]} 86. g5 {[%emt 0:00:44]} Rh4 {[%emt 0:00:12]} 87. Kf3 {[%emt 0:00:54]} Rf4+ {[%emt 0:00:47]} 88. Ke3 {[%emt 0:00:06]} Rg4 $2 {[%emt 0:00:03]} (88... Nf8 89. Re7+ Kd8 90. Rxe5 Rf1) 89. Re7 {[%emt 0:00:33]} Rg1 {[%emt 0:00:36]} 90. Nf6 {[%emt 0:00:27]} Rxg5 {[%emt 0:00:56]} 91. Rxd7+ {[%emt 0:00:32]} Kc6 {[%emt 0:00:20]} 92. Rd5 {[%emt 0:00:49]} Rg3+ {[%emt 0:03:52]} 93. Kd2 {[%emt 0:00:20]} Rg2+ {[%emt 0:00:04]} 94. Kd3 {[%emt 0:00:22]} Rg3+ {[%emt 0:00:15]} 95. Kc2 {[%emt 0:00:14]} Re3 {[%emt 0:00:27]} 96. Ng4 {[%emt 0:00:24]} Re2+ {[%emt 0:00:01]} 97. Kd3 {[%emt 0:00:11]} Rg2 {[%emt 0:00:01]} 98. Nxe5+ {[%emt 0:00:16]} Kb7 {[%emt 0:00:01]} 99. Rb5 {[%emt 0:00:59]} Kc7 {[%emt 0:00:04]} 100. Kd4 {[%emt 0:01:02]} Rd2+ {[%emt 0:00:01]} 101. Nd3 {[%emt 0:00:42]} Rh2 {[%emt 0:00:01]} 102. Nb4 {[%emt 0:00:16]} Rh4+ {[%emt 0:00:01]} 103. Kd3 {[%emt 0:00:11]} Rh3+ {[%emt 0:00:01]} 104. Kc2 {[%emt 0:00:10]} Rh4 {[%emt 0:00:01]} 105. Kb3 {[%emt 0:00:25]} Rh3 {[%emt 0:00:00]} 106. Nd5+ {[%emt 0:00:15]} Kc6 {[%emt 0:00:01]} 107. Rxb6+ {[%emt 0:00:15]} Kc5 {[%emt 0:00:00]} 108. Rb5+ {[%emt 0:00:12]} Kc6 {[%emt 0:00:01]} 109. Nb4+ {[%emt 0:00:11]} Kd6 {[%emt 0:00:00]} 110. Rg5 {[%emt 0:00:27]} Kc7 {[%emt 0:00:01]} 111. c5 Kd7 112. Rg6 {[%emt 0:00:25]} Rf3 {[%emt 0:00:01]} 113. c6+ {[%emt 0:00:12]} Kc7 {[%emt 0:00:01]} 114. Nd5+ Kd8 {[%emt 0:01:12]} 115. Rg8+ {[%emt 0:00:13] Ke7} 1-0